[Event "UKR-ch Women Final 2018"]
[Site "Kiev"]
[Date "2018.12.11"]
[Round "1"]
[White "Shpanko, Nadiia"]
[Black "Rakhmangulova, Anastasiya"]
[Result "1/2-1/2"]
[ECO "B40"]
[WhiteElo "2262"]
[BlackElo "2233"]
[Annotator "ChessBase"]
[PlyCount "82"]
[EventDate "2018.12.11"]
[EventType "tourn"]
[EventCountry "UKR"]
[SourceTitle "playchess.com"]
[Source "ChessBase"]
[SourceQuality "1"]
[TimeControl "40/5400+30:1800+30"]

1. e4 {[%emt 0:00:00]} c5 {[%emt 0:00:00]} 2. Nf3 {[%emt 0:00:00]} e6 {[%emt 0:00:00]} 3. d4 {[%emt 0:00:01]} cxd4 {[%emt 0:00:00]} 4. Nxd4 {[%emt 0:00:05]} Nf6 {[%emt 0:00:00]} 5. Nc3 {[%emt 0:00:07]} Nc6 {[%emt 0:00:00]} 6. Nxc6 {[%emt 0:00:42]} bxc6 {[%emt 0:00:00]} 7. e5 {[%emt 0:00:06]} Nd5 {[%emt 0:00:00]} 8. Ne4 {[%emt 0:00:11]} Qc7 {[%emt 0:00:03]} 9. f4 {[%emt 0:00:11]} Qb6 {[%emt 0:00:04]} 10. c4 {[%emt 0:00:27]} Bb4+ {[%emt 0:00:04]} 11. Ke2 {[%emt 0:00:33]} f5 {[%emt 0:01:06]} 12. Nf2 {[%emt 0:00:31]} Ba6 {[%emt 0:01:18]} 13. Kf3 {[%emt 0:00:09]} Ne7 {[%emt 0:01:13]} 14. Be3 {[%emt 0:00:59]} Bc5 {[%emt 0:00:22]} 15. Bxc5 {[%emt 0:00:22]} Qxc5 {[%emt 0:00:04]} 16. Qd6 {[%emt 0:00:07]} Qb6 {[%emt 0:00:04]} 17. b3 {[%emt 0:00:09]} c5 {[%emt 0:00:04]} 18. Rd1 {[%emt 0:00:20]} Qxd6 {[%emt 0:00:16]} 19. exd6 {[%emt 0:02:14]} Bb7+ {[%emt 0:06:27]} 20. Ke3 {[%emt 0:00:09]} Ng8 {[%emt 0:00:53]} 21. Be2 {[%emt 0:05:20]} Nf6 {[%emt 0:08:47]} 22. Bf3 {[%emt 0:05:21]} Bxf3 {[%emt 0:01:06]} 23. gxf3 {[%emt 0:00:07]} O-O {[%emt 0:01:49]} 24. Nd3 {[%emt 0:02:11]} Rfc8 {[%emt 0:01:40]} 25. Rd2 {[%emt 0:02:03]} a5 {[%emt 0:10:09]} 26. Nb2 {[%emt 0:08:51]} Ra6 {[%emt 0:06:08]} 27. Na4 {[%emt 0:00:25]} Ne8 {[%emt 0:06:12]} 28. Rhd1 {[%emt 0:01:55]} Rcc6 {[%emt 0:00:48]} 29. Kf2 {[%emt 0:00:11]} Kf7 {[%emt 0:00:46]} 30. Re2 {[%emt 0:04:13]} Rc8 {[%emt 0:07:54]} 31. Red2 {[%emt 0:00:51]} Rcc6 {[%emt 0:00:05]} 32. h4 {[%emt 0:15:35]} Nf6 {[%emt 0:12:08]} 33. Nc3 {[%emt 0:01:50]} Ne8 {[%emt 0:05:57]} 34. Nb5 {[%emt 0:00:08]} a4 {[%emt 0:02:18]} 35. Nc7 {[%emt 0:15:32]} Rab6 {[%emt 0:12:23]} 36. Nb5 {[%emt 0:06:13]} axb3 {[%emt 0:00:18]} 37. axb3 {[%emt 0:00:05]} Ra6 {[%emt 0:00:16]} 38. Ke3 {[%emt 0:02:59]} Nf6 {[%emt 0:03:35]} 39. Rb1 {[%emt 0:05:25]} Ne8 {[%emt 0:00:24]} 40. Rbd1 {[%emt 0:00:00]} Nf6 {[%emt 0:00:00]} 41. Rb1 {[%emt 0:00:21]} Ne8 {[%emt 0:00:08] Ke4} 1/2-1/2

[Event "UKR-ch Women Final 2018"]
[Site "Kiev"]
[Date "2018.12.11"]
[Round "1"]
[White "Martynkova, Olena"]
[Black "Babiy, Olga"]
[Result "1-0"]
[ECO "E04"]
[WhiteElo "2173"]
[BlackElo "2275"]
[Annotator "NA RC"]
[PlyCount "79"]
[EventDate "2018.12.11"]
[EventType "tourn"]
[EventCountry "UKR"]
[SourceTitle "playchess.com"]
[Source "ChessBase"]
[SourceQuality "1"]
[TimeControl "40/5400+30:1800+30"]

{[%evp 15,54,-16,22,0,27,29,23,29,29,24,35,28,33,41,18,23,100,90,68,93,85,69,100,111,128,105,115,103,152,152,152,152,150,141,140,144,185,179,182,77,125]} 1. d4 {[%emt 0:00:00]} Nf6 {[%emt 0:00:00]} 2. c4 {[%emt 0:00:00]} e6 {[%emt 0:00:00]} 3. g3 {[%emt 0:00:15]} d5 {[%emt 0:00:00]} 4. Nf3 {[%emt 0:00:32]} dxc4 {[%emt 0:00:22]} 5. Bg2 {[%emt 0:00:31]} c6 {[%emt 0:00:11]} 6. O-O {[%emt 0:07:07]} b5 {[%emt 0:00:36]} 7. a4 {[%emt 0:03:03] E04: Open Catalan: 5 Nf3} Bb7 {[%emt 0:00:30]} 8. Ne5 {[%emt 0:03:50]} Qc7 {[%emt 0:01:31] LiveBook: 9 Games} (8... a6 9. Nc3 Nd5 10. e4 Nxc3 11. bxc3 Be7 12. Rb1 Qc8 13. Qg4 g6 14. f4 Nd7 15. f5 Nxe5 16. dxe5 h5 17. Qf3 exf5 18. exf5 Qxf5 19. Qxc6+ Bxc6 20. Bxc6+ {½-½ (78) Inarkiev,E (2689)-Piorun,K (2651) Katowice 2017}) 9. Nc3 {[%emt 0:12:19] The position is equal.} b4 {[%emt 0:06:09]} 10. Ne4 {[%emt 0:02:40]} Nxe4 {[%emt 0:02:59]} 11. Bxe4 {[%emt 0:00:05]} c5 $1 {[%emt 0:02:00]} 12. Bxb7 {[%emt 0:15:53]} Qxb7 {[%emt 0:00:44]} 13. Bf4 $146 {[%emt 0:07:30]} ({Predecessor:} 13. Be3 Nc6 14. Nxc6 Qxc6 15. Rc1 {½-½ (72) Mikhalevski,V (2566)-Postny,E (2563) Ashdod 2004}) 13... Nc6 {[%emt 0:17:48]} 14. Nxc6 $1 {[%emt 0:14:05]} Qxc6 {[%emt 0:00:07]} 15. Rc1 {[%emt 0:00:57]} Rd8 {[%emt 0:14:55]} (15... Qa6 $11 {remains equal.}) 16. Rxc4 $16 {[%emt 0:02:49]} Qd5 {[%emt 0:01:19]} 17. Qc2 {[%emt 0:06:28]} cxd4 {[%emt 0:01:42]} 18. e4 {[%emt 0:01:50]} dxe3 {[%emt 0:17:07]} 19. Bxe3 {[%emt 0:00:10]} Be7 {[%emt 0:00:44]} 20. Bxa7 {[%emt 0:11:30]} O-O {[%emt 0:02:23]} 21. Bb6 $36 {[%emt 0:00:37] White is on the roll.} Rd7 {[%emt 0:07:09]} 22. Rd4 {[%emt 0:01:28]} Qb7 {[%emt 0:00:10]} 23. Rxd7 {[%emt 0:00:53]} Qxd7 {[%emt 0:00:03]} 24. Rd1 {[%emt 0:00:53]} Qb7 {[%emt 0:02:32] Hoping for ...Rc8.} 25. a5 {[%emt 0:00:32]} h5 {[%emt 0:06:16] [#]} 26. h4 $1 {[%emt 0:03:41]} Rc8 {[%emt 0:00:44]} 27. Qe2 {[%emt 0:00:42]} (27. Qd2 $18 {has better winning chances.}) 27... g6 {[%emt 0:05:54] Accuracy: White = 78%, Black = 39%.} 28. Bd4 {[%emt 0:00:34]} Rc6 {[%emt 0:01:54]} 29. Qe5 {[%emt 0:01:28]} f6 {[%emt 0:00:10]} 30. Qe4 {[%emt 0:00:10]} Kf7 {[%emt 0:00:46]} 31. Be3 {[%emt 0:01:18]} Qb5 {[%emt 0:01:13]} 32. Bb6 {[%emt 0:00:42]} Qa4 {[%emt 0:05:06]} 33. Re1 {[%emt 0:01:17]} Qb5 {[%emt 0:01:59]} 34. Ra1 {[%emt 0:00:28]} Rc8 {[%emt 0:01:24]} 35. Qb7 {[%emt 0:00:35]} Rc6 {[%emt 0:00:26]} 36. Rd1 {[%emt 0:00:32]} Ke8 {[%emt 0:00:33]} 37. Qd7+ {[%emt 0:00:31]} Kf8 {[%emt 0:00:31]} 38. Bd8 {[%emt 0:00:13]} Bc5 {[%emt 0:00:28]} 39. Bxf6 {[%emt 0:00:35]} Bxf2+ {[%emt 0:00:31]} 40. Kh1 {[%emt 0:00:00]} 1-0

[Event "UKR-ch Women Final 2018"]
[Site "Kiev"]
[Date "2018.12.11"]
[Round "1"]
[White "Dolzhykova, Kateryna"]
[Black "Osmak, Iulija"]
[Result "0-1"]
[ECO "C07"]
[WhiteElo "2161"]
[BlackElo "2403"]
[Annotator "RC"]
[PlyCount "154"]
[EventDate "2018.12.11"]
[EventType "tourn"]
[EventCountry "UKR"]
[SourceTitle "playchess.com"]
[Source "ChessBase"]
[SourceQuality "1"]
[TimeControl "40/5400+30:1800+30"]

1. e4 {[%emt 0:00:00]} e6 {[%emt 0:00:00]} 2. d4 {[%emt 0:00:00]} d5 {[%emt 0:00:00]} 3. Nd2 {[%emt 0:00:00]} c5 {[%emt 0:00:48]} 4. Ngf3 {[%emt 0:00:16]} cxd4 {[%emt 0:00:14]} 5. Nxd4 {[%emt 0:00:10]} Nc6 {[%emt 0:00:29]} 6. Bb5 {[%emt 0:00:09]} Bd7 {[%emt 0:00:05]} 7. Nxc6 {[%emt 0:00:12]} bxc6 {[%emt 0:00:30]} 8. Bd3 {[%emt 0:00:09]} Qc7 {[%emt 0:00:53]} 9. Qe2 {[%emt 0:00:48]} Bd6 {[%emt 0:01:13]} 10. Nf3 {[%emt 0:00:09]} e5 {[%emt 0:05:32]} 11. exd5 {[%emt 0:10:53]} cxd5 {[%emt 0:00:44]} 12. Nxe5 {[%emt 0:06:51]} Bxe5 {[%emt 0:00:32]} 13. f4 {[%emt 0:01:38]} f6 {[%emt 0:00:29]} 14. O-O {[%emt 0:03:37]} Ne7 {[%emt 0:01:19]} 15. fxe5 {[%emt 0:00:27]} Qxe5 {[%emt 0:01:08]} 16. Qf2 {[%emt 0:02:32]} Kf7 {[%emt 0:03:35]} 17. c4 {[%emt 0:10:27]} Rhc8 {[%emt 0:13:14]} 18. Bf4 {[%emt 0:06:25]} Qh5 {[%emt 0:00:18]} 19. cxd5 {[%emt 0:20:54]} Nxd5 {[%emt 0:03:40]} 20. Ba6 {[%emt 0:00:29]} Nxf4 {[%emt 0:11:39]} 21. Qxf4 {[%emt 0:00:08]} Qc5+ {[%emt 0:05:19]} 22. Kh1 {[%emt 0:00:18]} Re8 {[%emt 0:00:35]} 23. Rac1 {[%emt 0:06:27]} Qe5 {[%emt 0:10:19]} 24. Bc4+ {[%emt 0:02:12]} Kf8 {[%emt 0:00:08]} 25. Qd2 {[%emt 0:02:48]} Rad8 {[%emt 0:15:10]} 26. Qb4+ {[%emt 0:12:50]} Qe7 {[%emt 0:00:39]} 27. Qa5 {[%emt 0:00:58]} Bc6 {[%emt 0:07:07]} 28. Rce1 {[%emt 0:03:21]} Be4 {[%emt 0:02:28]} 29. Qc3 {[%emt 0:05:18]} Qd6 {[%emt 0:02:56]} 30. Bb3 {[%emt 0:00:31]} Qd4 {[%emt 0:05:09]} 31. Qa5 {[%emt 0:02:27]} Re5 {[%emt 0:05:30]} 32. Qc7 {[%emt 0:01:11]} Re7 {[%emt 0:00:11]} 33. Qg3 {[%emt 0:00:37]} Rde8 {[%emt 0:00:34]} 34. Rd1 {[%emt 0:00:51]} Qxb2 {[%emt 0:00:30]} 35. Rd6 {[%emt 0:00:41]} Bg6 {[%emt 0:02:14]} 36. Qh4 {[%emt 0:00:00]} Qe5 {[%emt 0:01:44]} 37. Rc6 {[%emt 0:00:55]} Rc7 {[%emt 0:00:55]} 38. Qb4+ {[%emt 0:00:14]} Rce7 {[%emt 0:00:36]} 39. Re6 {[%emt 0:00:25]} Qb8 {[%emt 0:00:31]} 40. Qa3 {[%emt 0:00:00]} Bf7 {[%emt 0:00:00]} 41. Re3 {[%emt 0:12:57]} Bxb3 {[%emt 0:02:55]} 42. Rxb3 {[%emt 0:02:39]} Qc7 {[%emt 0:03:55]} 43. Rg3 {[%emt 0:05:31]} Kg8 {[%emt 0:01:21]} 44. Qb3+ {[%emt 0:00:14]} Kh8 {[%emt 0:00:30]} 45. Qb4 {[%emt 0:01:15]} Re2 {[%emt 0:02:31]} 46. a4 {[%emt 0:01:13]} R2e4 {[%emt 0:01:22]} 47. Qb5 {[%emt 0:02:18]} Qc4 {[%emt 0:03:24]} 48. Qxc4 {[%emt 0:06:48]} Rxc4 {[%emt 0:00:06]} 49. Ra3 {[%emt 0:00:24]} Ree4 {[%emt 0:01:50]} 50. Rfa1 {[%emt 0:00:03]} a5 {[%emt 0:01:01]} 51. h3 {[%emt 0:00:40]} h5 {[%emt 0:01:31]} 52. Kh2 {[%emt 0:00:34]} h4 53. R3a2 Kh7 {[%emt 0:01:26]} 54. Ra3 {[%emt 0:00:20]} Kg6 {[%emt 0:03:44]} 55. R1a2 {[%emt 0:00:27]} Kf7 {[%emt 0:00:23]} 56. g3 {[%emt 0:00:38]} hxg3+ {[%emt 0:01:28]} 57. Kxg3 {[%emt 0:00:03]} g5 {[%emt 0:00:07]} 58. Ra1 {[%emt 0:00:37]} Kg6 {[%emt 0:00:25]} 59. R1a2 {[%emt 0:01:06]} f5 {[%emt 0:00:55]} 60. Ra1 {[%emt 0:01:35]} Kh5 {[%emt 0:00:34]} 61. R1a2 {[%emt 0:01:09]} Red4 {[%emt 0:01:12]} 62. Ra1 {[%emt 0:00:49]} Rd2 {[%emt 0:01:15]} 63. R1a2 {[%emt 0:01:17]} Rxa2 {[%emt 0:05:24]} 64. Rxa2 {[%emt 0:00:01]} Rc3+ {[%emt 0:00:06]} 65. Kg2 {[%emt 0:00:09]} Kh4 {[%emt 0:00:05]} 66. Rd2 {[%emt 0:00:28]} Rg3+ {[%emt 0:00:10]} 67. Kf2 {[%emt 0:00:00]} Rxh3 {[%emt 0:00:44]} 68. Rd5 {[%emt 0:00:01]} Kg4 {[%emt 0:00:45]} 69. Rxa5 {[%emt 0:00:02]} Ra3 {[%emt 0:00:08]} 70. Ra8 {[%emt 0:01:01]} Ra2+ {[%emt 0:00:27]} 71. Ke1 {[%emt 0:01:47]} f4 {[%emt 0:00:23]} 72. a5 {[%emt 0:00:08]} f3 {[%emt 0:00:23]} 73. Rg8 {[%emt 0:01:19]} f2+ {[%emt 0:01:48]} 74. Kf1 {[%emt 0:00:06]} Kf3 {[%emt 0:00:04]} 75. Rf8+ {[%emt 0:00:23]} Kg3 {[%emt 0:00:04]} 76. a6 {[%emt 0:00:12]} Ra1+ {[%emt 0:00:04]} 77. Ke2 {[%emt 0:00:02]} Re1+ {[%emt 0:00:07]} 0-1

[Event "UKR-ch Women Final 2018"]
[Site "Kiev"]
[Date "2018.12.12"]
[Round "2"]
[White "Doluhanova, Evgeniya"]
[Black "Osmak, Iulija"]
[Result "1-0"]
[ECO "C11"]
[WhiteElo "2367"]
[BlackElo "2403"]
[Annotator "RC"]
[PlyCount "63"]
[EventDate "2018.12.11"]
[EventType "tourn"]
[EventCountry "UKR"]
[SourceTitle "playchess.com"]
[Source "ChessBase"]
[SourceQuality "1"]
[TimeControl "40/5400+30:1800+30"]

1. e4 {[%emt 0:00:00]} e6 {[%emt 0:02:43]} 2. d4 {[%emt 0:00:00]} d5 {[%emt 0:00:03]} 3. Nc3 {[%emt 0:00:00]} Nf6 {[%emt 0:00:38]} 4. e5 {[%emt 0:00:05]} Nfd7 {[%emt 0:00:06]} 5. f4 {[%emt 0:00:08]} c5 {[%emt 0:00:05]} 6. Nf3 {[%emt 0:00:07]} Be7 {[%emt 0:09:45]} 7. Be3 {[%emt 0:00:21]} O-O {[%emt 0:00:11]} 8. h4 {[%emt 0:00:46]} Nc6 {[%emt 0:02:31]} 9. Bd3 {[%emt 0:00:40]} f5 {[%emt 0:03:55]} 10. Ng5 {[%emt 0:18:10]} Bxg5 {[%emt 0:16:04]} 11. hxg5 {[%emt 0:00:30]} cxd4 {[%emt 0:01:56]} 12. Qh5 {[%emt 0:06:42]} dxc3 {[%emt 0:02:25]} 13. Qxh7+ {[%emt 0:08:29]} Kf7 {[%emt 0:00:08]} 14. bxc3 {[%emt 0:30:46]} Ne7 {[%emt 0:28:26]} 15. g4 {[%emt 0:01:24]} Rg8 {[%emt 0:04:11]} 16. gxf5 {[%emt 0:11:36]} exf5 {[%emt 0:01:12]} 17. Qh5+ {[%emt 0:08:32]} Ke6 {[%emt 0:05:51]} 18. c4 {[%emt 0:02:27]} Nf8 {[%emt 0:12:25]} 19. cxd5+ {[%emt 0:02:56]} Qxd5 {[%emt 0:00:05]} 20. O-O-O {[%emt 0:03:38]} g6 {[%emt 0:06:41]} 21. Qe2 {[%emt 0:00:18]} b5 {[%emt 0:00:24]} 22. Bxb5 {[%emt 0:01:19]} Qxd1+ {[%emt 0:00:31]} 23. Rxd1 {[%emt 0:00:11]} Kf7 {[%emt 0:00:05]} 24. Bc5 {[%emt 0:01:40]} Be6 {[%emt 0:00:13]} 25. Bd6 {[%emt 0:00:21]} Rc8 {[%emt 0:00:21]} 26. a4 {[%emt 0:00:51]} Rh8 {[%emt 0:01:17]} 27. Qf2 {[%emt 0:00:13]} Bb3 {[%emt 0:00:45]} 28. Rd2 {[%emt 0:00:55]} a6 {[%emt 0:00:32]} 29. Bxa6 {[%emt 0:00:33]} Rh1+ {[%emt 0:00:30]} 30. Kb2 {[%emt 0:00:05]} Ra8 {[%emt 0:00:27]} 31. Bb7 {[%emt 0:00:21]} Rxa4 {[%emt 0:00:28]} 32. cxb3 {[%emt 0:00:17]} 1-0

[Event "UKR-ch Women Final 2018"]
[Site "Kiev"]
[Date "2018.12.12"]
[Round "2"]
[White "Rakhmangulova, Anastasiya"]
[Black "Doluhanova, Evgeniya"]
[Result "*"]
[ECO "B35"]
[WhiteElo "2233"]
[BlackElo "2367"]
[Annotator "ChessBase"]
[PlyCount "47"]
[EventDate "2018.12.11"]
[EventType "tourn"]
[EventCountry "UKR"]
[SourceTitle "playchess.com"]
[Source "ChessBase"]
[SourceQuality "1"]
[TimeControl "40/5400+30:1800+30"]

1. e4 {[%emt 0:00:00]} c5 {[%emt 0:00:00]} 2. Nf3 {[%emt 0:00:00]} Nc6 {[%emt 0:00:00]} 3. d4 {[%emt 0:00:00]} cxd4 {[%emt 0:00:00]} 4. Nxd4 {[%emt 0:00:00]} Nf6 {[%emt 0:00:11]} 5. Nc3 {[%emt 0:00:00]} g6 {[%emt 0:00:46]} 6. Be3 {[%emt 0:00:02]} Bg7 {[%emt 0:00:10]} 7. Bc4 {[%emt 0:00:04]} O-O {[%emt 0:00:40]} 8. Bb3 {[%emt 0:00:03]} d5 {[%emt 0:01:15]} 9. exd5 {[%emt 0:00:05]} Na5 {[%emt 0:00:05]} 10. Qf3 {[%emt 0:00:04]} Nxb3 {[%emt 0:02:31]} 11. axb3 {[%emt 0:02:29]} Bg4 {[%emt 0:02:20]} 12. Qg3 {[%emt 0:00:07]} Bh5 {[%emt 0:01:25]} 13. d6 {[%emt 0:00:19]} e5 {[%emt 0:02:55]} 14. Ndb5 {[%emt 0:12:45]} a6 {[%emt 0:02:09]} 15. Nc7 {[%emt 0:01:30]} Rc8 {[%emt 0:05:04]} 16. Qxe5 {[%emt 0:04:01]} Ne8 {[%emt 0:08:11]} 17. Qe7 {[%emt 0:15:56]} Nxc7 {[%emt 0:00:24]} 18. Qxd8 {[%emt 0:00:05]} Rfxd8 {[%emt 0:00:06]} 19. dxc7 {[%emt 0:00:03]} Rxc7 {[%emt 0:00:10]} 20. O-O {[%emt 0:05:43]} Bxc3 {[%emt 0:05:49]} 21. Bf4 {[%emt 0:13:43]} Rc6 {[%emt 0:16:46]} 22. bxc3 {[%emt 0:00:06]} Rxc3 {[%emt 0:00:08]} 23. f3 {[%emt 0:06:09]} Rxc2 {[%emt 0:06:02]} 24. Rad1 {[%emt 0:13:07]} *

[Event "UKR-ch Women Final 2018"]
[Site "Kiev"]
[Date "2018.12.12"]
[Round "2"]
[White "Rakhmangulova, Anastasiya"]
[Black "Dolzhykova, Kateryna"]
[Result "1/2-1/2"]
[ECO "B35"]
[WhiteElo "2233"]
[BlackElo "2161"]
[Annotator "NA"]
[PlyCount "88"]
[EventDate "2018.12.11"]
[EventType "tourn"]
[EventCountry "UKR"]
[SourceTitle "playchess.com"]
[Source "ChessBase"]
[SourceQuality "1"]
[TimeControl "40/5400+30:1800+30"]

1. e4 {[%emt 0:00:00]} c5 {[%emt 0:00:00]} 2. Nf3 {[%emt 0:00:00]} Nc6 {[%emt 0:00:00]} 3. d4 {[%emt 0:00:00]} cxd4 {[%emt 0:00:00]} 4. Nxd4 {[%emt 0:00:00]} Nf6 {[%emt 0:00:11]} 5. Nc3 {[%emt 0:00:00]} g6 {[%emt 0:00:46]} 6. Be3 {[%emt 0:00:02]} Bg7 {[%emt 0:00:10]} 7. Bc4 {[%emt 0:00:04]} O-O {[%emt 0:00:40]} 8. Bb3 {[%emt 0:00:03]} d5 {[%emt 0:01:15]} 9. exd5 {[%emt 0:00:05] B35: Sicilian: Accelerated Dragon with 5 Nc3: main line} Na5 $1 {[%emt 0:00:05]} 10. Qf3 {[%emt 0:00:04]} (10. O-O Nxb3 11. Nxb3 b6 12. d6 e6 13. Qf3 Rb8 14. Rfd1 Bb7 15. Qh3 Rc8 16. Bd4 Nd5 17. Nxd5 Bxd5 18. Bxg7 Kxg7 {1-0 (34) Vachier Lagrave,M (2796)-Gelfand,B (2719) Palma de Mallorca 2017}) 10... Nxb3 {[%emt 0:02:31]} 11. axb3 {[%emt 0:02:29]} Bg4 {[%emt 0:02:20]} 12. Qg3 {[%emt 0:00:07]} Bh5 {[%emt 0:01:25]} 13. d6 {[%emt 0:00:19] LiveBook: 7 Games} e5 {[%emt 0:02:55]} 14. Ndb5 {[%emt 0:12:45] [#]} a6 $146 {[%emt 0:02:09]} ({Predecessor:} 14... Ne8 $16 15. Bc5 Rc8 16. Bb4 a6 {1-0 (69) Saric,I (2668)-Antipov,M (2550) Monzon 2016}) 15. Nc7 {[%emt 0:01:30]} Rc8 {[%emt 0:05:04] [#]} 16. Qxe5 $2 {[%emt 0:04:01]} (16. Bc5 $1 $18) 16... Ne8 $1 {[%emt 0:08:11]} 17. Qe7 {[%emt 0:15:56]} Nxc7 {[%emt 0:00:24]} 18. Qxd8 {[%emt 0:00:05]} Rfxd8 {[%emt 0:00:06]} 19. dxc7 {[%emt 0:00:03]} Rxc7 {[%emt 0:00:10]} 20. O-O {[%emt 0:05:43]} Bxc3 {[%emt 0:05:49]} 21. Bf4 {[%emt 0:13:43]} Rc6 {[%emt 0:16:46]} 22. bxc3 {[%emt 0:00:06]} Rxc3 {[%emt 0:00:08]} 23. f3 {[%emt 0:06:09]} Rxc2 {[%emt 0:06:02]} 24. Rad1 {[%emt 0:13:07]} Re8 {[%emt 0:05:16]} 25. g4 {[%emt 0:13:26]} g5 {[%emt 0:01:04]} 26. Bxg5 {[%emt 0:00:03]} Ree2 {[%emt 0:03:31]} 27. Bf4 {[%emt 0:00:05]} Bg6 {[%emt 0:00:45]} 28. Rfe1 {[%emt 0:02:49]} Bd3 {[%emt 0:05:26]} 29. b4 {[%emt 0:04:34]} f6 {[%emt 0:11:06]} 30. Rxe2 {[%emt 0:01:53]} Bxe2 {[%emt 0:00:02]} 31. Rd8+ {[%emt 0:00:04]} Kf7 {[%emt 0:00:06]} 32. Kf2 {[%emt 0:00:20]} Bb5+ {[%emt 0:00:34]} 33. Rd2 {[%emt 0:06:09]} Rc4 {[%emt 0:01:14]} 34. Bd6 {[%emt 0:00:18]} b6 {[%emt 0:00:39]} 35. h4 {[%emt 0:00:48]} a5 {[%emt 0:01:09]} 36. bxa5 {[%emt 0:00:07]} bxa5 {[%emt 0:00:05]} 37. Ra2 {[%emt 0:00:46]} a4 {[%emt 0:00:23]} 38. Ra3 {[%emt 0:00:26]} h5 {[%emt 0:01:59]} 39. Kg3 {[%emt 0:00:30]} hxg4 {[%emt 0:00:38]} 40. fxg4 {[%emt 0:00:00]} Bd7 {[%emt 0:00:00]} 41. Bf4 {[%emt 0:01:53]} Rb4 {[%emt 0:01:17]} 42. h5 {[%emt 0:08:15]} Rb1 {[%emt 0:01:23]} 43. Be3 {[%emt 0:02:04]} Rb4 {[%emt 0:00:36]} 44. Bf4 {[%emt 0:00:05]} Rb1 1/2-1/2

[Event "UKR-ch Women Final 2018"]
[Site "Kiev"]
[Date "2018.12.15"]
[Round "5"]
[White "Rakhmangulova, Anastasiya"]
[Black "Babiy, Olga"]
[Result "0-1"]
[ECO "B15"]
[WhiteElo "2233"]
[BlackElo "2275"]
[Annotator "NA"]
[PlyCount "68"]
[EventDate "2018.12.11"]
[EventType "tourn"]
[EventCountry "UKR"]
[SourceTitle "playchess.com"]
[Source "ChessBase"]
[SourceQuality "1"]
[TimeControl "40/5400+30:1800+30"]

1. e4 {[%emt 0:00:00]} c6 {[%emt 0:00:00]} 2. d4 {[%emt 0:00:00]} d5 {[%emt 0:00:00]} 3. Nc3 {[%emt 0:00:00]} dxe4 {[%emt 0:00:00]} 4. Nxe4 {[%emt 0:00:00]} Nf6 {[%emt 0:00:00]} 5. Nxf6+ {[%emt 0:00:00]} exf6 {[%emt 0:00:00]} 6. c3 {[%emt 0:00:00]} Bd6 {[%emt 0:00:03]} 7. Bd3 {[%emt 0:00:00]} O-O {[%emt 0:00:10]} 8. Qc2 {[%emt 0:00:00]} Re8+ {[%emt 0:00:09]} 9. Ne2 {[%emt 0:00:01]} h5 {[%emt 0:00:07]} 10. Be3 {[%emt 0:00:06]} Nd7 {[%emt 0:00:08]} 11. O-O-O {[%emt 0:00:05]} Nf8 {[%emt 0:00:19]} 12. Kb1 {[%emt 0:00:30]} Be6 {[%emt 0:01:17]} 13. c4 {[%emt 0:02:11]} Rc8 {[%emt 0:02:40]} 14. Ng3 {[%emt 0:19:43]} g6 {[%emt 0:04:24]} 15. Ne4 {[%emt 0:01:49]} b5 {[%emt 0:04:51]} 16. d5 {[%emt 0:16:03]} cxd5 {[%emt 0:09:00]} 17. Nxd6 {[%emt 0:00:04]} Qxd6 {[%emt 0:01:04]} 18. c5 {[%emt 0:00:03]} Qc6 {[%emt 0:02:28]} 19. Bd4 {[%emt 0:08:15]} Bd7 {[%emt 0:01:24]} 20. b4 {[%emt 0:08:43]} a5 {[%emt 0:12:32]} 21. Rhe1 {[%emt 0:18:58]} axb4 {[%emt 0:01:17]} 22. f4 {[%emt 0:02:34]} Bg4 23. f5 {[%emt 0:01:21]} Bxd1 {[%emt 0:19:07]} 24. Rxd1 {[%emt 0:00:03]} g5 {[%emt 0:01:37]} 25. h4 {[%emt 0:00:47]} Nd7 26. hxg5 fxg5 {[%emt 0:15:34]} 27. f6 {[%emt 0:19:16]} Nxf6 {[%emt 0:04:25]} 28. Rf1 {[%emt 0:00:26]} Ne4 29. Bxe4 {[%emt 0:01:43]} Rxe4 {[%emt 0:01:56]} 30. Rf6 Qe8 {[%emt 0:07:58]} 31. Rh6 {[%emt 0:01:48]} f6 {[%emt 0:00:07]} 32. Bb2 Re1+ {[%emt 0:02:42]} 33. Bc1 {[%emt 0:00:55]} Qe4 {[%emt 0:00:07]} 34. Qxe4 {[%emt 0:01:00]} dxe4 0-1

[Event "UKR-ch Women Final 2018"]
[Site "Kiev"]
[Date "2018.12.15"]
[Round "5"]
[White "Martynkova, Olena"]
[Black "Doluhanova, Evgeniya"]
[Result "1/2-1/2"]
[ECO "E18"]
[WhiteElo "2173"]
[BlackElo "2367"]
[Annotator "NA"]
[PlyCount "26"]
[EventDate "2018.12.11"]
[EventType "tourn"]
[EventCountry "UKR"]
[SourceTitle "playchess.com"]
[Source "ChessBase"]
[SourceQuality "1"]
[TimeControl "40/5400+30:1800+30"]

1. d4 {[%emt 0:00:00]} Nf6 {[%emt 0:00:00]} 2. c4 {[%emt 0:00:03]} e6 {[%emt 0:00:00]} 3. Nf3 {[%emt 0:00:31]} b6 {[%emt 0:00:02]} 4. g3 {[%emt 0:00:21]} Bb7 {[%emt 0:00:06]} 5. Bg2 {[%emt 0:00:14]} Be7 {[%emt 0:00:06]} 6. O-O {[%emt 0:00:30]} O-O {[%emt 0:00:14]} 7. Nc3 {[%emt 0:00:20]} Ne4 {[%emt 0:00:42]} 8. Bd2 {[%emt 0:00:24]} Nxd2 {[%emt 0:01:53]} 9. Qxd2 {[%emt 0:00:55]} d6 {[%emt 0:00:52]} 10. d5 {[%emt 0:11:08]} e5 {[%emt 0:03:32]} 11. e4 {[%emt 0:04:00]} Nd7 {[%emt 0:00:30]} 12. Ne1 {[%emt 0:02:04]} a5 {[%emt 0:05:20]} 13. Nd3 {[%emt 0:10:55]} Ba6 {[%emt 0:10:04]} 1/2-1/2